Cogmind - Beta 10.2 *** ADVENTURER MODE // 2020.12.12 @ 13:20:46 Player: Ms Vella Result: Destroyed by DAS Turret with DAS Cannon Performance ------------- Evolutions (1) 500 Regions Visited (5) 1000 Robots Destroyed (14) 70 Value Destroyed (311) 311 Prototype IDs (7) 140 Alien Tech Used (0) 0 Bonus (217) 217 TOTAL SCORE: 2238 Bonus ------- Follower Combat Kills 217 Cogmind --------- Core Integrity 0/400 Matter 101/300 Energy 100/100 System Corruption 0% Temperature Cool (0) Movement Walking (240) Ox4 Location -9/Exiles Parts ------- > --- POWER (1) -------- (None) > --- PROPULSION (2) --- Improved Aluminum Leg > --- UTILITY (4) ------ Large Storage Unit Large Storage Unit High-capacity Storage Unit > --- WEAPON (2) ------- (None) > --- INVENTORY (24) --- Improved Ion Engine Improved Ion Engine Improved Ion Engine Large Storage Unit Large Storage Unit Large Storage Unit Large Storage Unit Large Storage Unit Gravity Neutralizing Apparatus Sensor Array Improved Signal Interpreter Improved Signal Interpreter Improved Signal Interpreter Advanced Weapon Cycler EM Shotgun Light EM Pulse Cannon 8R-AWN's Boregun 8R-AWN's Boregun Grenade Launcher Grenade Launcher Rocket Launcher Rocket Launcher Peak State ------------ > --- POWER ------------ Improved Ion Engine > --- PROPULSION ------- Improved Aluminum Leg Improved Aluminum Leg > --- UTILITY ---------- Large Storage Unit Large Storage Unit High-capacity Storage Unit Gravity Neutralizing Apparatus > --- WEAPON ----------- Improved Assault Rifle 8R-AWN's Boregun > --- INVENTORY -------- Improved Ion Engine Improved Ion Engine Improved Ion Engine Improved Aluminum Leg Large Storage Unit Large Storage Unit Large Storage Unit Large Storage Unit Large Storage Unit Sensor Array Improved Signal Interpreter Improved Signal Interpreter Improved Signal Interpreter Advanced Weapon Cycler EM Shotgun Light EM Pulse Cannon Improved Assault Rifle 8R-AWN's Boregun Grenade Launcher Grenade Launcher Rocket Launcher Rocket Launcher [Rating: 33] Favorites ----------- Power Improved Ion Engine Engine Improved Ion Engine Propulsion Improved Aluminum Leg Treads Light Treads Leg Improved Aluminum Leg Utility Large Storage Unit Device Gravity Neutralizing Apparatus Storage Large Storage Unit Processor Improved Signal Interpreter Protection Light Armor Plating Weapon Improved Assault Rifle Energy Gun EM Shotgun Energy Cannon Light EM Pulse Cannon Ballistic Gun Improved Assault Rifle Launcher Rocket Launcher Build | -11 -10 -10 -9 -9 -9 ------- Run | Scr Mat Min Mat Min Exi Slots Evolved 2 | . . . 2 . . Power . | . . . . . . Propulsion . | . . . . . . Utility 2 | . . . 2 . . Weapon . | . . . . . . Parts Attached 26 | . 7 1 6 . 12 Power 1 | . 1 . . . . Engine 1 | . 1 . . . . Core . | . . . . . . Reactor . | . . . . . . Propulsion 6 | . 4 . . . 2 Treads 2 | . 2 . . . . Leg 4 | . 2 . . . 2 Wheel . | . . . . . . Hover . | . . . . . . Flight . | . . . . . . Utility 8 | . 2 . 3 . 3 Device 1 | . . . . . 1 Storage 4 | . 2 . 1 . 1 Processor 1 | . . . 1 . . Hackware . | . . . . . . Protection 2 | . . . 1 . 1 Artifact . | . . . . . . Weapon 11 | . . 1 3 . 7 Energy Gun 1 | . . . . . 1 Energy Cannon 1 | . . . . . 1 Ballistic Gun 8 | . . 1 3 . 4 Ballistic Cannon . | . . . . . . Launcher 1 | . . . . . 1 Special Weapon . | . . . . . . Impact Weapon . | . . . . . . Slashing Weapon . | . . . . . . Piercing Weapon . | . . . . . . Special Melee Weapon . | . . . . . . Unidentified Prototypes 3 | . . . 1 . 2 Parts Lost 7 | . . . . . 7 Power 1 | . . . . . 1 Propulsion 3 | . . . . . 3 Utility 1 | . . . . . 1 Weapon 2 | . . . . . 2 Highest Loss Streak 5 | . . . . . 5 Average Slot Usage (%) 98 | . 97 100 99 100 98 Engine 12 | . 14 14 11 11 10 Treads 3 | . 19 . . . . Leg 20 | . 8 28 22 22 21 Storage 30 | . 25 28 32 33 33 Processor 5 | . . . 11 11 9 Ballistic Gun 24 | . 28 28 21 22 20 Naked Turns . | . . . . . . Heaviest Build 79 | 11 41 41 61 61 79 Greatest Support 40 | 20 40 26 26 26 26 Greatest Overweight (x) 5 | . 3 1 2 2 5 Average Overweight (x) 1 | . . 1 1 2 2 Largest Inventory Capacity 24 | 6 16 16 22 22 24 Average Capacity 19 | 6 14 16 21 22 23 Most Carried 24 | 5 14 16 18 18 24 Average Carried 15 | 4 8 14 15 18 19 Final Capacity 24 | 6 16 16 22 22 24 Final Carried 22 | 2 14 16 18 18 22 Class Distribution -------------------- 55% | Hauler-Mutant 44% | Mutant Dominant Class ---------------- Mutant | -10/Materials Mutant | -10/Mines Hauler-Mutant | -9/Materials Hauler-Mutant | -9/Mines Hauler-Mutant | -9/Exiles Resources | -11 -10 -10 -9 -9 -9 ----------- Run | Scr Mat Min Mat Min Exi Matter Collected 529 | 200 98 38 60 42 91 Remotely . | . . . . . . Salvage Created 461 | . 238 . . 105 118 Parts 37 | . 20 . . 13 4 Haulers Intercepted . | . . . . . . Recyclers Shooed . | . . . . . . Parts Field Recycled . | . . . . . . Retrieved Matter . | . . . . . . Parts Self-Destructed . | . . . . . . Prevented . | . . . . . . Kills | -11 -10 -10 -9 -9 -9 ------- Run | Scr Mat Min Mat Min Exi Combat Hostiles Destroyed 20 | . 8 . . 4 8 Guns 13 | . 8 . . 4 1 AOE 7 | . . . . . 7 Classes Destroyed 4 | . 2 . . 1 1 Tunneler 1 | . . . . 1 . Swarmer 6 | . 3 . . 3 . Grunt 6 | . 5 . . 1 . Assembled 7 | . . . . . 7 Best Kill Streak 7 | . 3 . . 2 7 Combat Bots Only 7 | . 3 . . 2 7 Max Kills in Single Turn 4 | . 2 . . 2 4 Gunslinging 1 | . 1 . . 1 . Exploded 4 | . . . . . 4 Melee . | . . . . . . Uniques/NPCs Destroyed 1 | . . . . . 1 8R-AWN (-9/Exiles) Combat | -11 -10 -10 -9 -9 -9 -------- Run | Scr Mat Min Mat Min Exi Damage Taken 1700 | . 368 22 23 88 1199 Core 456 | . 47 8 . 26 375 Absorbed by Shields . | . . . . . . Core Remaining (%) 89 | 100 . 78 . . . Volleys Fired 77 | . 30 . . 7 40 Largest 2 | . 2 . . 2 2 Hottest 56 | . 40 . . 46 56 Shots Fired 142 | . 60 . . 14 68 Gun 138 | . 60 . . 14 64 Cannon 2 | . . . . . 2 Launcher 2 | . . . . . 2 Special . | . . . . . . Kinetic 135 | . 60 . . 14 61 Thermal . | . . . . . . Explosive 2 | . . . . . 2 Electromagnetic 5 | . . . . . 5 Robot Hit Streak 39 | . 22 . . 7 39 Robot Miss Streak 1 | . 1 . . 1 1 Penetration Max . | . . . . . . Secondary Targets 4 | . 3 . . 1 . Max Gunslinging Chain 1 | . 1 . . 1 . Shots Hit Robots 124 | . 53 . . 11 60 Core Hits 52 | . 19 1 . 7 25 Critical Hits 2 | . 1 . . 1 . Critical Kills 1 | . . . . 1 . Critical Parts Destroyed 1 | . 1 . . . . Melee Attacks . | . . . . . . Impact . | . . . . . . Slashing . | . . . . . . Piercing . | . . . . . . Sneak Attacks . | . . . . . . Combat Hostiles . | . . . . . . Follow-up Attacks . | . . . . . . Damage Inflicted 1920 | . 378 14 . 202 1326 Guns 1423 | . 378 . . 165 880 Cannons . | . . . . . . Explosions 446 | . . . . . 446 Melee . | . . . . . . Ramming 51 | . . 14 . 37 . Kinetic 1423 | . 378 . . 165 880 Thermal . | . . . . . . Explosive 446 | . . . . . 446 Electromagnetic . | . . . . . . Impact . | . . . . . . Slashing . | . . . . . . Piercing . | . . . . . . Highest Corruption . | . . . . . . Average Corruption . | . . . . . . Corruption Purged . | . . . . . . Overload Shots . | . . . . . . Overflow Damage . | . . . . . . Projectiles . | . . . . . . Explosions . | . . . . . . Melee . | . . . . . . Knockbacks 2 | . . 1 . 1 . Impact 2 | . . 1 . 1 . Kinetic . | . . . . . . Secondary . | . . . . . . Self-Inflicted Damage 18 | . . 5 . 13 . Shots . | . . . . . . Rammed 6 | . . 2 . 4 . Targets Rammed 8 | . . 3 . 5 . Kicked 2 | . . 1 . 1 . Crushed . | . . . . . . Highest Temperature 227 | . 30 1 227 . 12 Average Temperature 35 | . 12 1 119 . 9 Received Heat Transfer 250 | . 195 40 9 6 . Siege Activations . | . . . . . . Robots Corrupted . | . . . . . . Combat Hostiles . | . . . . . . Parts Fried . | . . . . . . Impact Corruptions . | . . . . . . Robots Melted . | . . . . . . Combat Hostiles . | . . . . . . Parts Melted . | . . . . . . Heat Transferred . | . . . . . . Parts Sabotaged . | . . . . . . Parts Stolen . | . . . . . . Parts Stripped . | . . . . . . Power Chain Reactions . | . . . . . . Missiles Intercepted . | . . . . . . Alert | -11 -10 -10 -9 -9 -9 ------- Run | Scr Mat Min Mat Min Exi Peak Influence 281 | . 210 57 101 281 . Initial 37 | . . 37 . 33 . Average 71 | . 89 23 15 152 . Maximum Alert Level 1 | . 1 . . 1 . Low Security (%) 98 | 100 98 100 100 96 . Level 1 1 | . 1 . . 3 . Level 2 . | . . . . . . Level 3 . | . . . . . . Level 4 . | . . . . . . Level 5 . | . . . . . . High Security . | . . . . . . Max Security . | . . . . . . Squads Dispatched 2 | . 1 . 1 . . Investigation 1 | . 1 . . . . Extermination . | . . . . . . Reinforcement 1 | . . . 1 . . Assault . | . . . . . . Garrison . | . . . . . . Intercept . | . . . . . . Construction Impeded . | . . . . . . Haulers Reinforced . | . . . . . . Stealth | -11 -10 -10 -9 -9 -9 --------- Run | Scr Mat Min Mat Min Exi Distress Signals 4 | . 2 . 2 . . Communications Jammed . | . . . . . . Distress Signals . | . . . . . . Times Spotted 63 | . 17 6 7 12 21 Peak Tracking Total 9 | . 4 8 3 4 9 Tactical Retreats 6 | . 3 . . . 3 Traps | -11 -10 -10 -9 -9 -9 ------- Run | Scr Mat Min Mat Min Exi Traps Triggered 1 | . 1 . . . . Indirectly . | . . . . . . Trap Hack Attempts . | . . . . . . Triggered . | . . . . . . Disarmed . | . . . . . . Reprogrammed . | . . . . . . Reused . | . . . . . . Traps Extracted . | . . . . . . Installed . | . . . . . . Triggered . | . . . . . . Machines | -11 -10 -10 -9 -9 -9 ---------- Run | Scr Mat Min Mat Min Exi Machines Disabled 1 | . . . . . 1 Max in Single Turn 1 | . . . . . 1 Machines Sabotaged . | . . . . . . Garrisons Compromised . | . . . . . . Overloaded Fab Kills . | . . . . . . Fab Network Shutdowns . | . . . . . . Hacking | -11 -10 -10 -9 -9 -9 --------- Run | Scr Mat Min Mat Min Exi Machines Accessed 11 | . 4 . 1 2 4 Terminals 5 | . 3 . . 2 . Fabricators . | . . . . . . Repair Stations . | . . . . . . Recycling Units 2 | . 1 . 1 . . Scanalyzers . | . . . . . . Garrison Access . | . . . . . . Total Hacks 47 | . 10 . 1 6 30 Successful 39 | . 6 . 1 2 30 Failed 8 | . 4 . . 4 . Catastrophic . | . . . . . . Database Lockouts . | . . . . . . Manual 10 | . 5 . . 5 . Terminals 15 | . 9 . . 6 . Fabricators . | . . . . . . Repair Stations . | . . . . . . Recycling Units 2 | . 1 . 1 . . Scanalyzers . | . . . . . . Garrison Access . | . . . . . . Terminal Hacks 36 | . 4 . . 2 30 Record 30 | . . . . . 30 Prototype ID Bank 2 | . 2 . . . . Branch Access Points 1 | . 1 . . . . Hauler Manifests 1 | . 1 . . . . Zone Layout 2 | . . . . 2 . Fabricator Hacks . | . . . . . . Repair Station Hacks . | . . . . . . Recycling Unit Hacks 2 | . 1 . 1 . . Report Inventory 2 | . 1 . 1 . . Scanalyzer . | . . . . . . Garrison Access Hacks . | . . . . . . Unauthorized Hacks 1 | . 1 . . . . Terminals 1 | . 1 . . . . Botnet 1 | . 1 . . . . Fabricators . | . . . . . . Repair Stations . | . . . . . . Recycling Units . | . . . . . . Scanalyzers . | . . . . . . Garrison Access . | . . . . . . Data Cores Recovered . | . . . . . . Used . | . . . . . . Hacking Detections 6 | . 4 . . 2 . Full Trace Events . | . . . . . . Feedback Events . | . . . . . . Feedback Blocked . | . . . . . . Robot Schematics Acquired . | . . . . . . Robots Built . | . . . . . . Matter . | . . . . . . Time . | . . . . . . Total Robot Build Rating . | . . . . . . Part Schematics Acquired . | . . . . . . Parts Built . | . . . . . . Matter . | . . . . . . Time . | . . . . . . Total Part Build Rating . | . . . . . . Parts Repaired . | . . . . . . Time . | . . . . . . Parts Recycled . | . . . . . . Recycled Matter . | . . . . . . Retrieved Matter . | . . . . . . Retrieved Components . | . . . . . . Parts Scanalyzed . | . . . . . . Part Schematics Acquired . | . . . . . . Parts Damaged . | . . . . . . Bothacking | -11 -10 -10 -9 -9 -9 ------------ Run | Scr Mat Min Mat Min Exi Used RIF Installer . | . . . . . . Robots Hacked . | . . . . . . Non-combat . | . . . . . . Combat . | . . . . . . Robot Hacks Applied . | . . . . . . Relay Couplers Released . | . . . . . . Robots Rewired . | . . . . . . Allies Hacked . | . . . . . . Hacks Repelled . | . . . . . . Allies | -11 -10 -10 -9 -9 -9 -------- Run | Scr Mat Min Mat Min Exi Total Allies 3 | . . 3 . . . Largest Group 3 | . . 3 3 3 2 Highest-Rated Group 40 | . . 40 40 40 32 Highest-Rated Ally 16 | . . 16 16 16 16 Total Orders . | . . . . . . Ally Attacks 49 | . . 6 10 19 14 Total Damage 410 | . . 87 111 201 11 Kills 12 | . . 2 3 7 . Allies Corrupted . | . . . . . . Allies Melted . | . . . . . . Intel | -11 -10 -10 -9 -9 -9 ------- Run | Scr Mat Min Mat Min Exi Robot Analysis Total . | . . . . . . Derelict Logs Recovered 1 | . . 1 . . . Drone Launches . | . . . . . . Drone Recoveries . | . . . . . . Exploration | -11 -10 -10 -9 -9 -9 ------------- Run | Scr Mat Min Mat Min Exi Turns Passed 3632 | 2 735 847 339 584 1125 Spaces Moved 1927 | 1 363 542 184 295 542 Core . | . . . . . . Treads 222 | . 222 . . . . Legs 1705 | 1 141 542 184 295 542 Wheels . | . . . . . . Hover . | . . . . . . Flight . | . . . . . . Fastest Speed 120 | 120 120 150 150 180 180 Average Speed 166 | 120 151 150 177 180 181 Slowest Speed 270 | 120 210 150 180 180 270 Overloaded Moves . | . . . . . . Propulsion Burnouts . | . . . . . . Robots Hopped . | . . . . . . Cave-ins Triggered . | . . . . . . Exploration Rate (%) 51 | 1 52 87 20 57 91 Regions Visited 5 Branch Regions 3 Pre-discovered Areas 1 | . . . . . 1 Known Exits Taken 3 | . 1 . 1 1 . Unknown Exits Taken 2 | 1 . 1 . . . Scrap Searched 2 | . . 1 . 1 . Spaces Dug . | . . . . . . Terrain Destroyed . | . . . . . . Melee . | . . . . . . Projectile . | . . . . . . AOE . | . . . . . . Terrain Rammed . | . . . . . . Walls Destroyed . | . . . . . . Machines Disabled . | . . . . . . Actions | -11 -10 -10 -9 -9 -9 --------- Run | Scr Mat Min Mat Min Exi Total 2226 | 4 505 575 197 330 615 Wait 132 | . 68 27 1 24 12 Move 1923 | . 362 542 183 294 542 Hop . | . . . . . . Pick Up 34 | . 22 2 4 . 6 Fast Attach 9 | . 6 . 3 . . Attach 7 | . . . 2 . 5 Detach 2 | . . . . . 2 Swap 10 | . 1 1 1 . 7 Drop 25 | 4 16 1 3 . 1 Fire 77 | . 30 . . 7 40 Melee . | . . . . . . Ram . | . . . . . . Kick 7 | . . 2 . 5 . Crush . | . . . . . . Escape Stasis . | . . . . . . Rewire . | . . . . . . Trap . | . . . . . . Miscellaneous . | . . . . . . Route ------- -11/Scrapyard -10/Materials (discovered 2 exits: *Mat / *Min) -10/Mines (discovered 2 exits: *Mat x2) -9/Materials (discovered 4 exits: Mat / *Min / *Sto x2) -9/Mines (discovered 2 exits: *Mat / *Exi) -9/Exiles (discovered 2 exits: [*Min x2]) History --------- Turn | Location | Event 3 | -11/Scrapyard | Discovered new exit (range 0) 3 | -11/Scrapyard | Entered Materials 192 | -10/Materials | Identified exit to Mines 317 | -10/Materials | Build established: Mutant 519 | -10/Materials | Discovered new exit (range 16) 738 | -10/Materials | Entered Mines 941 | -10/Mines | Assisted by bots powering up and referring to "LRC-V3" 1043 | -10/Mines | Learned location of 2 exits from Materials 1061 | -10/Mines | Discovered new exit (range 8) 1496 | -10/Mines | Received a Rocket Launcher from a helpful Derelict 1566 | -10/Mines | Discovered new exit (range 13) 1571 | -10/Mines | Assembled infested the area 1585 | -10/Mines | Entered Materials 1585 | -9/Materials | Accompanied by 3 allies 1585 | -9/Materials | Evolved 2 slots: Utility x2 1586 | -9/Materials | Identified exit to Materials 1586 | -9/Materials | Identified exit to Storage 1898 | -9/Materials | Discovered new exit (range 5) 1908 | -9/Materials | Build established: Hauler-Mutant 1910 | -9/Materials | Discovered exit to Storage (range 13) 1914 | -9/Materials | Identified exit to Mines 1924 | -9/Materials | Entered Mines 1924 | -9/Mines | Accompanied by 3 allies 2091 | -9/Mines | Discovered exit to Materials (range 16) 2493 | -9/Mines | Deemed a non-threat by the Exiles lab entrance 2495 | -9/Mines | Discovered new exit (range 5) 2502 | -9/Mines | Identified exit to Exiles 2508 | -9/Mines | Entered Exiles 2508 | -9/Exiles | Accompanied by 2 allies 2535 | -9/Exiles | Discovered new exit (range 15) 2588 | -9/Exiles | Met 8R-AWN 2624 | -9/Exiles | Met EX-HEX 2696 | -9/Exiles | Met EX-DEC 2738 | -9/Exiles | Visited The Gauntlet 3099 | -9/Exiles | Learned location of Zion (-6) 3167 | -9/Exiles | Discovered new exit (range 14) 3279 | -9/Exiles | Met EX-BIN 3411 | -9/Exiles | Attacked by the Exiles 3454 | -9/Exiles | Destroyed 7 combat bots 3539 | -9/Exiles | Destroyed 8R-AWN 3556 | -9/Exiles | Found Prototype Ballistic Gun 3561 | -9/Exiles | Found Prototype Ballistic Gun 3569 | -9/Exiles | Identified 8R-AWN's Boregun (x2) 3600 | -9/Exiles | Core integrity fell below 50% 3630 | -9/Exiles | Core integrity fell below 20% 3633 | -9/Exiles | Destroyed by DAS Turret with DAS Cannon Last Messages --------------- 03530_ Penetrated by HV Slug. 03530_ HV Slug penetrates Wall. 03534_ Penetrated by HV Slug. 03534_ HV Slug penetrates Wall. 03534_ Penetrated by HV Slug. 03534_ HV Slug penetrates Wall. 03539_ 8R-AWN destroyed. 03551_ Acquired 2 matter. 03552_ Acquired 89 matter. 03556_ Acquired Prototype Ballistic Gun. 03565_ Acquired Adv. Weapon Cycler. 03568_ Acquired Prototype Device. 03569_ Identified 8R-AWN's Boregun. 03570_ Identified Gravity Neutralizing Apparatus. 03603_ Trooper 1a destroyed. 03605_ Imp. Assault Rifle destroyed. 03617_ Imp. Aluminum Leg destroyed. 03625_ Imp. Assault Rifle destroyed. 03625_ Imp. Ion Engine destroyed. 03629_ Knocked back. Map ----- +----------------------------------------------------+ | ??????????????????????????????#""X" #????? | | ??????????????????????????????#" #????? | | ??????????????????????????????#" #" #????? | | ??????????????????????????????#""""""#" #????? | | ??????????????????????????????##"###### #??""" | | ?????????????????????????????? "?????# #??""" | | ?????????????????????????????"""??????# #??""" | | ?????????????????????????????"""????### ###"" | | ?????#######????????????????????????#" | | ?????#!!! "#????????????????????????## | | ?????# "#?????????????????????????# [ | | ?????# "#?????????????????????????#" =%! % | | #???## ""#??????????########???????#" | | #####" ""#??????????# """#???????#" | | ##" ""#??????????#"" """#???????## %% | | #"" #????????????#"" #????????# | | #????????????#"" #????????#" "X" | | ##???????????#"" "#????????#" """ | | "#???????????# ""#????????#" """"" | | ###?????????#"" ""#???????##" ###### | | ##????????### ###??????##"" #????? | | "###"" ######???### ###?######"" #????? | | "#?##" """#####X# #"###""""""" ##???? | | ##??#" """""" " "" ##??? | | ###???#"# "" """ " #### | | #?????#### @ " " | | ?????????### | | ???????????### =%! | | ?????????????## | | ??????????????## | | ???????????????##" | | ????????????????#""" """""" | | ???????????????##" ######""" | | ???????????????#"" ""##?????####""" | | ??????????????##""" """##??????????#""" | | ??????????????#""" """##???????????#"""" | | ??????????????#""" ""#???????????##"" | | ??????????????#"" ########??####"""" | | ??????????????#"""t ## ####""" | | ??????????????#"" """" | | ??????????????##"" | | ???????????????#"""" | | ???????????????## | | ????????????????#" " "" | | ????????????????#"""" ""## ##""" " | | ????????????????#"" ""#### ######"" | | ????????????????#" """"##??# #????### | | ????????????????#""" """#??## ####???# | | ????????????????## ""##??# "!#???? | | ?????????????????#"" """##???#" !#???? | +----------------------------------------------------+ Best States ------------- Heat Dissipation 28 Energy Generation 12 Energy Capacity 265 Matter Stores 300 Matter Capacity 300 Sight Range 16 Terrain Scan Density 10 Armor Coverage 150 Resistance: KI 20 Resistance: TH 20 Resistance: EX 20 Resistance: EM 20 Resistance: I 20 Resistance: S 20 Resistance: P 20 Evasion (%) 40 Recoil Reduction 2 Offensive Hacking 10 Item Schematics ----------------- None Robot Schematics ------------------ None Fabricated ------------ Nothing Alien Tech Used ----------------- None Achievements -------------- None Challenges ------------ None Game ------ Seed ShrapnelRelayInterpreter Manual? 0 Play Time 00:27:17 Cumulative 775.1 hours Start 2020.12.11 @ 08:35:09 End 2020.12.12 @ 13:20:46 Sessions 2 Manual Loads 0 Difficulty Adventurer Special Mode None Game No. 140 Rogue 1 Adventurer 139 Explorer 0 Win Type - Total 3 Types 3/0/0/0/0/0/0/0/0 Lore% 69 Gallery% 80 Achievement% 60 Wizard Run 0 Options --------- ASCII 0 Keyboard 0 Movement Mouse Keybinds 0 Fullscreen 0 Font 12/Smallcaps Map View 83x54 Tactical HUD 1 Map Filters NONE Filters NONE Steam 1 RUN: 39304f06-5740-475a-8359-44161329c692